fUSD/lending_fUSD_20250724
["ID","MTS","AMOUNT","RATE_DAILY","PERIOD"]
[374614211,1753378242396,-460.29041765,0.00035798,120]
[374614213,1753378242406,-500.0,0.00035798,120]
[374614215,1753378242415,-197.77,0.00035798,120]
[374614217,1753378242425,-378.0,0.000358,2]
[374614219,1753378242435,-165.7,0.000358,33]
[374614221,1753378242444,-300.0,0.000358,12]
[374614223,1753378242454,-2880.0,0.000358,30]
[374614225,1753378242463,-16498.0022446,0.00035801,3]
[374614227,1753378242473,-150.5,0.00035801,120]
[374614229,1753378242482,-207.32,0.00035801,120]
[374614231,1753378242492,-168.0,0.00035803,2]
[374614233,1753378242501,-523.63,0.00035804,120]
[374614235,1753378242510,-523.63,0.00035804,120]
[374614237,1753378242520,-523.63,0.00035804,120]
[374614239,1753378242529,-523.63,0.00035804,120]
[374614241,1753378242539,-523.63,0.00035804,120]
[374614243,1753378242548,-523.63,0.00035804,120]
[374614244,1753378242561,-523.63,0.00035804,120]
[374614246,1753378242571,-523.63,0.00035804,120]
[374614248,1753378242580,-523.63,0.00035804,120]
[374614250,1753378242590,-523.63,0.00035804,120]
[374614252,1753378242600,-523.63,0.00035804,120]
[374614255,1753378242614,-523.63,0.00035804,120]
[374614257,1753378242623,-523.63,0.00035804,120]
[374614259,1753378242632,-523.63,0.00035804,120]
[374614262,1753378242642,-523.63,0.00035804,120]
[374614264,1753378242651,-523.63,0.00035804,120]
[374614266,1753378242661,-523.63,0.00035804,120]
[374614268,1753378242670,-523.63,0.00035804,120]
[374614270,1753378242680,-523.63,0.00035804,120]
[374614272,1753378242693,-523.63,0.00035804,120]
[374614273,1753378242703,-523.63,0.00035804,120]
[374614276,1753378242712,-523.63,0.00035804,120]
[374614279,1753378242722,-523.63,0.00035804,120]
[374614281,1753378242731,-523.6985707,0.00035804,120]
[374614283,1753378242741,-26223.58520432,0.00035805,3]
[374614286,1753378242753,-56266.42601858,0.00035805,3]
[374614288,1753378242763,-389.05,0.00035805,2]
[374614290,1753378242773,-238.148382,0.00035805,7]
[374614292,1753378242783,-151.0,0.00035805,7]
[374614294,1753378242792,-151.0,0.00035805,7]
[374614296,1753378242803,-16498.0022446,0.00035805,3]
[374614298,1753378242812,-7146.00010915,0.00035805,3]
[374614300,1753378242822,-154.83,0.00035806,2]
[374614302,1753378242831,-154.83,0.00035806,2]
[374614304,1753378242841,-150.0,0.00035808,2]
[374614306,1753378242851,-500.0,0.0003581,120]
[374614308,1753378242861,-460.0,0.0003581,120]
[374614310,1753378242871,-150.0,0.0003581,2]
[374614311,1753378242880,-1083.0,0.00035811,5]
[374614313,1753378242890,-151.0,0.00035811,7]
[374614315,1753378242900,-256.682001,0.00035811,7]
[374614317,1753378242909,-737.178991,0.00035811,7]
[374614319,1753378242919,-737.178991,0.00035811,7]
[374614321,1753378242928,-737.178991,0.00035811,7]
[374614323,1753378242937,-737.178991,0.00035811,7]
[374614325,1753378242947,-737.178991,0.00035811,7]
[374614327,1753378242956,-737.178991,0.00035811,7]
[374614329,1753378242966,-737.178991,0.00035811,7]
[374614331,1753378242976,-737.178991,0.00035811,7]
[374614334,1753378242985,-737.178991,0.00035811,7]
[374614337,1753378242994,-737.178991,0.00035811,7]
[374614339,1753378243003,-737.178991,0.00035811,7]
[374614342,1753378243012,-737.178991,0.00035811,7]
[374614345,1753378243022,-737.178991,0.00035811,7]
[374614347,1753378243031,-737.178991,0.00035811,7]
[374614350,1753378243040,-737.178991,0.00035811,7]
[374614353,1753378243049,-737.178991,0.00035811,7]
[374614355,1753378243060,-737.178991,0.00035811,7]
[374614358,1753378243069,-737.178991,0.00035811,7]
[374614361,1753378243078,-737.178991,0.00035811,7]
[374614364,1753378243088,-737.178987,0.00035811,7]
[374614367,1753378243097,-198.961972,0.00035811,7]
[374614369,1753378243107,-275.649347,0.00035811,7]
[374614371,1753378243116,-275.649347,0.00035811,7]
[374614373,1753378243126,-275.649347,0.00035811,7]
[374614375,1753378243135,-275.649347,0.00035811,7]
[374614377,1753378243144,-275.649347,0.00035811,7]
[374614379,1753378243154,-275.649347,0.00035811,7]
[374614381,1753378243163,-275.649347,0.00035811,7]
[374614383,1753378243172,-275.649347,0.00035811,7]
[374614385,1753378243182,-275.649347,0.00035811,7]
[374614387,1753378243191,-275.649347,0.00035811,7]
[374614389,1753378243202,-275.649347,0.00035811,7]
[374614391,1753378243212,-275.649347,0.00035811,7]
[374614392,1753378243222,-275.649347,0.00035811,7]
[374614393,1753378243231,-275.649347,0.00035811,7]
[374614394,1753378243242,-275.649347,0.00035811,7]
[374614395,1753378243252,-275.649347,0.00035811,7]
[374614396,1753378243262,-275.649347,0.00035811,7]
[374614397,1753378243272,-275.649347,0.00035811,7]
[374614398,1753378243282,-275.649347,0.00035811,7]
[374614399,1753378243292,-275.649338,0.00035811,7]
[374614400,1753378243302,-151.0,0.00035811,7]
[374614401,1753378243312,-151.0,0.00035811,7]
[374614402,1753378243322,-151.0,0.00035811,7]
[374614403,1753378243332,-200.0,0.00035811,2]
[374614404,1753378243341,-151.0,0.00035811,2]
[374614405,1753378243351,-156.21245783,0.00035811,2]
[374614407,1753378243362,-7000.0,0.00035811,2]
[374614409,1753378243371,-500.0,0.00035812,120]
[374614411,1753378243382,-400.0,0.00035812,2]
[374614413,1753378243391,-161.38,0.00035812,2]
[374614415,1753378243401,-400.0,0.00035812,2]
[374614417,1753378243411,-400.0,0.00035812,2]
[374614419,1753378243421,-168.05865209,0.00035812,120]
[374614421,1753378243430,-500.0,0.00035812,120]
[374614423,1753378243440,-480.0,0.00035812,120]
[374614425,1753378243449,-500.0,0.00035813,120]
[374614427,1753378243459,-500.0,0.00035813,120]
[374614429,1753378243469,-500.0,0.00035813,120]
[374614431,1753378243478,-500.0,0.00035813,120]
[374614433,1753378243487,-500.0,0.00035813,120]
[374614435,1753378243497,-440.0,0.00035813,120]
[374614437,1753378243506,-1500.0,0.00035813,2]
[374614439,1753378243516,-1500.0,0.00035813,2]
[374614441,1753378243525,-1291.1425,0.00035813,2]
[374614443,1753378243534,-178.45,0.00035814,2]
[374614445,1753378243544,-159.0,0.00035814,5]
[374614447,1753378243554,-151.0,0.00035814,7]
[374614449,1753378243563,-151.263948,0.00035814,2]
[374614451,1753378243573,-174.699875,0.00035814,7]
[374614453,1753378243582,-151.0,0.00035814,7]
[374614455,1753378243591,-151.0,0.00035814,7]
[374614457,1753378243602,-151.0,0.00035814,7]
[374614459,1753378243611,-151.890544,0.00035814,7]
[374614461,1753378243621,-151.0,0.00035814,7]
[374614463,1753378243630,-151.0,0.00035814,7]
[374614465,1753378243640,-151.0,0.00035814,7]
[374614467,1753378243650,-151.0,0.00035814,7]
[374614469,1753378243660,-238.147766,0.00035814,7]
[374614471,1753378243670,-666.0,0.00035814,10]
[374614473,1753378243680,-666.0,0.00035814,10]
[374614475,1753378243692,-50000.0,0.00035815,18]
[374614477,1753378243703,-50000.0,0.00035815,30]
[374614479,1753378243714,-50000.0,0.00035815,31]
[374614481,1753378243724,-151.0,0.00035815,7]
[374614483,1753378243735,-151.0,0.00035815,7]
[374614485,1753378243744,-226.090426,0.00035815,7]
[374614487,1753378243754,-226.090426,0.00035815,7]
[374614489,1753378243763,-226.090426,0.00035815,7]
[374614491,1753378243774,-151.0,0.00035815,7]
[374614493,1753378243784,-226.090426,0.00035815,7]
[374614495,1753378243794,-151.0,0.00035815,7]
[374614497,1753378243804,-226.090426,0.00035815,7]
[374614499,1753378243813,-226.090426,0.00035815,7]
[374614501,1753378243823,-226.090426,0.00035815,7]
[374614503,1753378243832,-226.090426,0.00035815,7]
[374614505,1753378243841,-226.090426,0.00035815,7]
[374614507,1753378243851,-226.090426,0.00035815,7]
[374614509,1753378243860,-226.090426,0.00035815,7]
[374614511,1753378243870,-226.090426,0.00035815,7]
[374614513,1753378243880,-226.090426,0.00035815,7]
[374614515,1753378243890,-226.090426,0.00035815,7]
[374614517,1753378243900,-226.090426,0.00035815,7]
[374614519,1753378243909,-226.090426,0.00035815,7]
[374614521,1753378243919,-226.090426,0.00035815,7]
[374614523,1753378243928,-226.090426,0.00035815,7]
[374614524,1753378243937,-226.090426,0.00035815,7]
[374614527,1753378243947,-226.090418,0.00035815,7]
[374614529,1753378243957,-151.0,0.00035815,7]
[374614531,1753378243966,-151.0,0.00035815,7]
[374614533,1753378243976,-500.0,0.00035815,30]
[374614535,1753378243985,-151.0,0.00035815,7]
[374614536,1753378243994,-500.0,0.00035815,120]
[374614538,1753378244004,-500.0,0.00035815,120]
[374614540,1753378244013,-500.0,0.00035815,120]
[374614542,1753378244023,-500.0,0.00035815,120]
[374614545,1753378244032,-500.0,0.00035815,120]
[374614547,1753378244042,-500.0,0.00035815,120]
[374614549,1753378244054,-151.0,0.00035815,7]
[374614551,1753378244063,-232.41,0.00035815,120]
[374614553,1753378244074,-151.0,0.00035815,7]
[374614555,1753378244085,-316.016382,0.00035815,7]
[374614557,1753378244094,-316.016382,0.00035815,7]
[374614559,1753378244104,-316.016382,0.00035815,7]
[374614561,1753378244114,-316.016382,0.00035815,7]
[374614563,1753378244123,-316.016382,0.00035815,7]
[374614565,1753378244133,-316.016382,0.00035815,7]
[374614567,1753378244143,-316.016382,0.00035815,7]
[374614569,1753378244152,-316.016382,0.00035815,7]
[374614571,1753378244162,-316.016382,0.00035815,7]
[374614573,1753378244172,-316.016382,0.00035815,7]
[374614575,1753378244181,-316.016382,0.00035815,7]
[374614577,1753378244191,-337.99,0.00035815,2]
[374614579,1753378244201,-316.016382,0.00035815,7]
[374614581,1753378244210,-316.016382,0.00035815,7]
[374614583,1753378244219,-316.016382,0.00035815,7]
[374614585,1753378244229,-316.016382,0.00035815,7]
[374614587,1753378244239,-316.016382,0.00035815,7]
[374614589,1753378244248,-316.016382,0.00035815,7]
[374614591,1753378244257,-316.016382,0.00035815,7]
[374614593,1753378244267,-316.016382,0.00035815,7]
[374614595,1753378244276,-316.016388,0.00035815,7]
[374614597,1753378244286,-368.06921451,0.00035815,2]
[374614599,1753378244295,-155889.91698116,0.00035815,17]
[374614782,1753378246162,-3570.6,0.00035815,17]
[374614783,1753378246180,-167.76,0.00035785,2]
[374614784,1753378246190,-2204.24,0.00035815,17]
[374614785,1753378246203,-2793.71786816,0.00035815,17]
[374614787,1753378246214,-24931.87428164,0.00035815,17]
[374614790,1753378246232,-167.76,0.00035794,2]
[374614792,1753378246242,-159.3236,0.00035815,17]
[374614794,1753378246254,-5808.83212812,0.00035815,17]
[374614796,1753378246265,-566.75970001,0.00035815,17]
[374614799,1753378246276,-665.23,0.00035815,17]
[374614801,1753378246291,-167.76,0.00035794,2]
[374614803,1753378246300,-284.33150918,0.00035815,17]
[374614814,1753378246395,-469.2233339,0.00035815,17]
[374614816,1753378246406,-932.76438512,0.00035815,17]
[374614818,1753378246416,-9309.98916978,0.00035816,30]
[374614951,1753378250605,-151.0,0.00035816,7]
[374614952,1753378250628,-255.325684,0.00035816,7]
[374614953,1753378250651,-151.0,0.00035816,7]
[374614954,1753378250675,-233.80432145,0.00035819,15]
[374614955,1753378250699,-500.0,0.00035819,15]
[374614956,1753378250723,-545.54341671,0.00035819,15]
[374614957,1753378250745,-541.9859069,0.00035819,15]
[374614958,1753378250766,-264.63378277,0.00035819,15]
[374614959,1753378250787,-500.0,0.00035819,15]
[374614960,1753378250809,-500.0,0.00035819,15]
[374614961,1753378250833,-500.0,0.00035819,15]
[374614962,1753378250855,-500.0,0.00035819,15]
[374614963,1753378250883,-206.29964464,0.00035819,2]
[374614964,1753378250907,-500.0,0.00035819,15]
[374614965,1753378250928,-500.0,0.00035819,15]
[374614966,1753378250949,-527.14149652,0.00035819,15]
[374614967,1753378250971,-500.0,0.00035819,15]
[374614968,1753378250994,-500.0,0.00035819,15]
[374614969,1753378251017,-500.0,0.00035819,15]
[374614970,1753378251041,-450.14332829,0.00035819,15]
[374614971,1753378251066,-500.0,0.00035819,15]
[374614972,1753378251088,-500.0,0.00035819,15]
[374614973,1753378251111,-500.0,0.00035819,15]
[374614974,1753378251132,-500.0,0.00035819,15]
[374614975,1753378251155,-500.0,0.00035819,15]
[374614976,1753378251176,-500.0,0.00035819,15]
[374614977,1753378251199,-500.0,0.00035819,15]
[374614978,1753378251221,-551.28995457,0.00035819,15]
[374614979,1753378251244,-500.0,0.00035819,15]
[374614980,1753378251266,-500.0,0.00035819,15]
[374614981,1753378251289,-500.0,0.00035819,15]
[374614982,1753378251312,-500.0,0.00035819,15]
[374614983,1753378251335,-500.0,0.00035819,15]
[374614984,1753378251356,-121.83246415,0.00035819,15]
[374614985,1753378251418,-449.242,0.00035815,61]
[374614986,1753378251430,-462.95784451,0.00035815,61]
[374614987,1753378251439,-228904.38671324,0.00035816,30]
[374614988,1753378251454,-815.78533027,0.00035716,2]
[374614989,1753378251464,-677.00725517,0.00035816,30]
[374614990,1753378251476,-5100.99358658,0.00035816,30]
[374614991,1753378251520,-1463.32960048,0.00035816,30]
[374614992,1753378251533,-35808.7353808,0.00035816,30]
[374614993,1753378251545,-586.0852,0.00035816,30]
[374614994,1753378251558,-2139.18470623,0.00035816,30]
[374614995,1753378251570,-595.27,0.00035816,30]
[374614996,1753378251583,-21040.19226018,0.00035816,30]
[374614997,1753378251594,-768.88579996,0.00035816,30]
[374614998,1753378255058,-282.73,0.00034385,2]
[374614999,1753378255083,-1083.120514,0.00035814,7]
[374615000,1753378255106,-1083.120514,0.00035814,7]
[374615001,1753378255128,-1083.120514,0.00035814,7]
[374615002,1753378255150,-1083.120514,0.00035814,7]
[374615003,1753378255175,-1083.120514,0.00035814,7]
[374615004,1753378255198,-1083.120514,0.00035814,7]
[374615005,1753378255219,-1083.120514,0.00035814,7]
[374615006,1753378255257,-1083.120514,0.00035814,7]
[374615007,1753378255282,-1083.120514,0.00035814,7]
[374615008,1753378255307,-1083.120514,0.00035814,7]
[374615009,1753378255331,-1083.120514,0.00035814,7]
[374615010,1753378255354,-1083.120514,0.00035814,7]
[374615011,1753378255377,-1083.120514,0.00035814,7]
[374615012,1753378255400,-636.703318,0.00035814,7]
[374615130,1753379180003,156.3,0.00013699,2]
[374615165,1753379432093,-500.0,0.00027,5]
[374615166,1753379432102,-156.3,0.00027397,2]
[374615167,1753379432113,-155.27,0.00027751,2]
[374615168,1753379432124,-150.0,0.00028,2]
[374615170,1753379432133,-500.0,0.00028785,2]
[374615172,1753379432144,-1828.27796569,0.00029451,2]
[374615174,1753379432153,-155.27,0.00029482,2]
[374615176,1753379432162,-417.2951021,0.0003,14]
[374615178,1753379432171,-155.27,0.00031212,2]
[374615179,1753379432181,-160.0,0.0003144,2]
[374615180,1753379432190,-500.0,0.00031932,2]
[374615181,1753379432199,-265.0,0.00031932,2]
[374615182,1753379432208,-510.0,0.00031932,2]
[374615183,1753379432217,-500.0,0.00032844,2]
[374615196,1753379432648,-419.26389214,0.00032844,2]
[374615197,1753379432679,-612.84259476,0.00032844,2]
[374615198,1753379432690,-155.27,0.00032942,2]
[374615199,1753379432701,-152.71,0.00032986,2]
[374615200,1753379432711,-1200.0,0.00033279,3]
[374615201,1753379432721,-1000.0,0.0003328,2]
[374615202,1753379432730,-300.0,0.00033458,3]
[374615203,1753379432740,-328.0,0.00033458,3]
[374615204,1753379432750,-166.32,0.00033459,2]
[374615205,1753379432759,-5000.0,0.00033459,2]
[374615206,1753379432769,-509.0,0.00033552,2]
[374615207,1753379432778,-235.5,0.00033645,2]
[374615208,1753379432787,-7167.81,0.00033816,2]
[374615209,1753379432797,-180.0,0.00033898,7]
[374615210,1753379432807,-235.83658718,0.000339,29]
[374615211,1753379432816,-1000.0,0.00033988,2]
[374615212,1753379432826,-663.78,0.00034104,30]
[374615213,1753379432835,-152.62,0.00034365,2]
[374615214,1753379432845,-150.93,0.00034475,2]
[374615215,1753379432854,-1344.0,0.00034504,2]
[374615216,1753379432864,-155.27,0.00034673,2]
[374615217,1753379432875,-622.429934,0.00034744,30]
[374615218,1753379432884,-550.0,0.00034744,2]
[374615219,1753379432893,-1344.0,0.0003486,2]
[374615220,1753379432903,-1885.48474469,0.00034899,7]
[374615221,1753379432915,-2883.30412001,0.00034899,7]
[374615222,1753379432925,-444.86498757,0.00034899,2]
[374615223,1753379432935,-159.13754522,0.00034973,5]
[374615224,1753379432944,-500.0,0.00034973,2]
[374615225,1753379432954,-725.471,0.00034981,40]
[374615226,1753379432964,-5821.43511891,0.0003499,3]
[374615227,1753379432976,-52564.28536164,0.0003499,3]
[374615228,1753379432988,-2288.60690714,0.0003499,3]
[374615229,1753379433000,-5791.96401,0.0003499,3]
[374615230,1753379433317,-7047.02209972,0.0003499,3]
[374615231,1753379433431,-992.61035881,0.0003499,3]
[374615232,1753379433443,-1821.63781162,0.0003499,3]
[374615233,1753379433536,-295.99999997,0.0003499,3]
[374615234,1753379438118,-163.66213941,0.00034899,15]
[374615235,1753379438129,-731.23186159,0.0003499,3]
[374615236,1753379438223,-1178.90885169,0.0003499,3]
[374615237,1753379438236,-269.51442101,0.0003499,3]
[374615238,1753379438246,-199.04774909,0.00034998,2]
[374615239,1753379438258,-226.39225091,0.00034998,2]
[374615240,1753379438268,-2289.14600809,0.00034999,17]
[374615241,1753379438280,-1705.9726179,0.00034999,17]
[374615409,1753379440255,-178.39154894,0.00034998,7]
[374615411,1753379440265,-500.0,0.00034998,7]
[374615413,1753379440275,-500.0,0.00034998,7]
[374615415,1753379440284,-500.0,0.00034998,7]
[374615417,1753379440293,-476.88969771,0.00034998,7]
[374615419,1753379440303,-500.0,0.00034998,7]
[374615421,1753379440313,-67.19211781,0.00034999,17]
[374615460,1753379440673,-11960.86128635,0.00034999,17]
[374615462,1753379440685,-27769.37352553,0.00034999,17]
[374615465,1753379440696,-2500.20446706,0.00034999,17]
[374616069,1753379446381,-500.0,0.00034998,2]
[374616071,1753379446393,-500.0,0.00034998,7]
[374616073,1753379446402,-500.0,0.00034998,7]
[374616075,1753379446412,-145.67433602,0.00034998,2]
[374616588,1753379451752,3956.37,0.0002002,2]
[374617025,1753380632812,-150.0,0.00022,2]
[374617028,1753380632822,-150.0,0.0002318,2]
[374617029,1753380632833,-171.24,0.00023302,2]
[374617030,1753380632843,-150.0,0.0002437,2]
[374617032,1753380632853,-500.0,0.00025128,2]
[374617033,1753380632863,-500.0,0.00025128,2]
[374617034,1753380632875,-500.0,0.00025128,2]
[374617035,1753380632886,-500.0,0.00025128,2]
[374617036,1753380632896,-500.0,0.00025128,2]
[374617038,1753380632906,-500.0,0.00025128,2]
[374617040,1753380632916,-150.0,0.0002555,2]
[374617042,1753380632925,-598.0,0.0002564,2]
[374617045,1753380632945,-300.0,0.0002564,2]
[374617047,1753380632955,-171.24,0.00025642,7]
[374617049,1753380632966,-4038.50730788,0.00025891,2]
[374617051,1753380632976,-226.54368466,0.000259,14]
[374617053,1753380632987,-220.91,0.00026077,2]
[374617055,1753380632997,-258.0,0.00026372,2]
[374617056,1753380633007,-300.0,0.00026373,2]
[374617057,1753380633018,-635.82941109,0.00026374,2]
[374617058,1753380633028,-423.88627406,0.00026374,2]
[374617059,1753380633038,-150.0,0.0002673,2]
[374617060,1753380633049,-220.91,0.00027807,2]
[374617061,1753380633059,-150.0,0.0002792,3]
[374617062,1753380633070,-171.24,0.00027982,7]
[374617063,1753380633080,-150.0,0.00028,2]
[374617064,1753380633090,-230.71,0.00028095,2]
[374617065,1753380633101,-150.0,0.000291,3]
[374617066,1753380633111,-518.13,0.000295,2]
[374617067,1753380633121,-220.91,0.00029538,2]
[374617068,1753380633132,-999.99,0.00029815,2]
[374617069,1753380633142,-171.24,0.00030322,30]
[374617070,1753380633152,-199.85,0.0003094,5]
[374617071,1753380633163,-1000.0,0.00031114,2]
[374617072,1753380633173,-689.13,0.00031156,2]
[374617073,1753380633183,-269.22,0.00031156,2]
[374617074,1753380633194,-220.91,0.00031268,2]
[374617075,1753380633205,-46337.49,0.00031327,2]
[374617076,1753380633215,-1063.90020156,0.00031361,2]
[374617077,1753380633226,-211.01152796,0.00031461,2]
[374617078,1753380633236,-839.91269601,0.00031461,2]
[374617079,1753380633247,-186.84,0.00031776,2]
[374617080,1753380633257,-250.0,0.00031788,2]
[374617081,1753380633268,-200.0,0.00031788,2]
[374617082,1753380633278,-5014.5,0.00031803,2]
[374617083,1753380633294,-580.377,0.00031806,30]
[374617084,1753380633305,-163.01,0.00031806,120]
[374617085,1753380633317,-469.44,0.00031809,2]
[374617086,1753380633328,-222.64,0.00031844,2]
[374617087,1753380633339,-597.4,0.00031892,30]
[374617088,1753380633351,-509.0,0.00031957,2]
[374617089,1753380633362,-164.35,0.00031968,2]
[374617090,1753380633373,-180.0,0.0003197,7]
[374617091,1753380633384,-551.11,0.00032182,2]
[374617092,1753380633395,-551.11,0.00032199,2]
[374617093,1753380633408,-1270.91,0.00032204,2]
[374617094,1753380633419,-551.11,0.00032216,2]
[374617095,1753380633429,-551.11,0.00032233,2]
[374617096,1753380633442,-171.8722843,0.0003224,2]
[374617097,1753380633453,-551.11,0.0003225,2]
[374617098,1753380633465,-23900.0,0.00032259,2]
[374617099,1753380633477,-551.11,0.00032267,2]
[374617100,1753380633488,-551.11,0.00032284,2]
[374617101,1753380633499,-551.11,0.000323,2]
[374617102,1753380633509,-551.11,0.00032317,2]
[374617103,1753380633520,-1512.04,0.0003232,2]
[374617104,1753380633530,-217.45,0.00032334,2]
[374617105,1753380633541,-551.11,0.00032334,2]
[374617106,1753380633552,-551.11,0.00032351,2]
[374617107,1753380633563,-551.11,0.00032368,2]
[374617108,1753380633574,-551.11,0.00032385,2]
[374617109,1753380633584,-551.11,0.00032402,2]
[374617110,1753380633595,-551.11,0.00032419,2]
[374617111,1753380633605,-551.11,0.00032436,2]
[374617112,1753380633617,-551.11,0.00032453,2]
[374617113,1753380633628,-551.11,0.0003247,2]
[374617114,1753380633638,-551.11,0.00032487,2]
[374617115,1753380633649,-551.11,0.00032504,2]
[374617116,1753380633659,-153.06,0.00032617,2]
[374617117,1753380633670,-171.24,0.00032662,30]
[374617118,1753380633681,-1515.65516204,0.00032829,2]
[374617119,1753380633694,-186.84,0.00032968,2]
[374617120,1753380633705,-220.91,0.00032999,2]
[374617121,1753380633717,-168.0,0.00033042,2]
[374617122,1753380633728,-168.0,0.00033075,2]
[374617123,1753380633741,-2584.85,0.00033223,2]
[374617124,1753380633752,-157.76,0.00033338,2]
[374617125,1753380633762,-168.0,0.00033353,2]
[374617126,1753380633773,-469.44,0.000334,2]
[374617127,1753380633784,-1954.13210801,0.00033473,2]
[374617128,1753380633796,-2038.3,0.00033512,120]
[374617129,1753380633807,-168.0,0.00033748,2]
[374617130,1753380633818,-10643.46,0.00033761,2]
[374617131,1753380633837,-151.0,0.00034005,2]
[374617132,1753380633851,-186.84,0.0003416,2]
[374617133,1753380633861,-168.0,0.00034191,2]
[374617134,1753380633873,-150.93,0.00034319,2]
[374617135,1753380633884,-168.09,0.00034444,2]
[374617136,1753380633895,-168.0,0.00034454,2]
[374617137,1753380633906,-1316.0,0.00034504,2]
[374617138,1753380633917,-509.0,0.00034506,7]
[374617139,1753380633928,-220.91,0.00034729,2]
[374617140,1753380633940,-414.95329,0.00034744,30]
[374617141,1753380633955,-230.71,0.00034753,2]
[374617142,1753380633966,-153.79,0.00034794,2]
[374617143,1753380633977,-1316.0,0.0003486,2]
[374617144,1753380633987,-153.30119568,0.00034868,2]
[374617145,1753380633999,-2329.26721884,0.00034879,2]
[374617146,1753380634010,-6469.82945693,0.0003488,2]
[374617147,1753380634020,-5000.0,0.00034898,2]
[374617148,1753380634031,-157.65680492,0.00034899,7]
[374617149,1753380634042,-178.32034892,0.00034899,2]
[374617150,1753380634053,-296.57665838,0.00034899,2]
[374617151,1753380634064,-296.57665837,0.000349,2]
[374617152,1753380634074,-296.57665837,0.000349,2]
[374617153,1753380634085,-160.0,0.00034933,2]
[374617154,1753380634095,-262222.172496,0.00034968,17]
[374617155,1753380634106,-304.06661482,0.00034968,61]
[374617156,1753380634117,-34968.011461,0.00034968,3]
[374617157,1753380634127,-34968.011461,0.00034969,3]
[374617158,1753380634137,-222.0,0.00034969,120]
[374617159,1753380634147,-222.0,0.00034969,120]
[374617160,1753380634158,-500.0,0.00034973,5]
[374617161,1753380634168,-500.0,0.00034973,5]
[374617162,1753380634178,-2329.26721883,0.00034973,2]
[374617163,1753380634188,-500.0,0.00034977,120]
[374617164,1753380634201,-1000.0,0.00034977,2]
[374617165,1753380634211,-34968.011461,0.00034978,3]
[374617166,1753380634222,-232.41,0.00034978,120]
[374617167,1753380634232,-500.0,0.00034978,120]
[374617168,1753380634243,-476.51234548,0.00034979,3]
[374617169,1753380634255,-104904.034383,0.00034979,3]
[374617170,1753380634266,-10632.0829366,0.00034979,3]
[374617171,1753380634282,-222.0,0.00034979,120]
[374617172,1753380634292,-222.0,0.00034979,120]
[374617173,1753380634304,-1772.01382277,0.00034988,3]
[374617174,1753380634315,-192324.063035,0.00034989,3]
[374617175,1753380634326,-40756.3179237,0.00034989,3]
[374617176,1753380634337,-182.73017919,0.00034989,2]
[374617177,1753380634347,-9216.856,0.00034989,3]
[374617178,1753380634358,-1061.391505,0.00034989,3]
[374617179,1753380634369,-222.0,0.00034989,120]
[374617180,1753380634380,-222.0,0.00034989,120]
[374617181,1753380634391,-469.44,0.0003499,2]
[374617182,1753380634405,-500.0,0.00034997,30]
[374617183,1753380634416,-151.0,0.00034998,2]
[374617184,1753380634426,-7000.0,0.00034998,2]
[374617185,1753380634437,-151.0,0.00034998,17]
[374617186,1753380634449,-231.28369723,0.00034998,17]
[374617187,1753380634460,-239.84119403,0.00034998,17]
[374617188,1753380634472,-248.71531821,0.00034998,17]